fUST/lending_fUST_20250709
["ID","MTS","AMOUNT","RATE_DAILY","PERIOD"]
[370421321,1752012644137,-460.0,0.00019452,2]
[370421322,1752012644147,-460.0,0.00019452,2]
[370421323,1752012644156,-504.1,0.00019452,2]
[370421324,1752012644165,-460.0,0.00019452,2]
[370421325,1752012644175,-704.17,0.00019452,2]
[370421326,1752012644184,-460.0,0.00019452,2]
[370421327,1752012644194,-2041.38,0.00019452,2]
[370421328,1752012644203,-460.0,0.00019452,2]
[370421329,1752012644212,-460.0,0.00019452,2]
[370421330,1752012644221,-2818.76,0.00019452,2]
[370421331,1752012644231,-460.0,0.00019452,2]
[370421332,1752012644240,-460.0,0.00019452,2]
[370421333,1752012644250,-460.0,0.00019452,2]
[370421334,1752012644259,-1935.51,0.00019452,2]
[370421335,1752012644269,-460.0,0.00019452,2]
[370421336,1752012644278,-738.99,0.00019452,2]
[370421337,1752012644289,-1660.85,0.00019452,2]
[370421338,1752012644298,-513.68,0.00019452,2]
[370421339,1752012644308,-498.23,0.00019452,2]
[370421340,1752012644318,-460.0,0.00019452,2]
[370421341,1752012644327,-460.0,0.00019452,2]
[370421342,1752012644336,-460.0,0.00019452,2]
[370421343,1752012644346,-460.0,0.00019452,2]
[370421344,1752012644355,-460.0,0.00019452,2]
[370421345,1752012644365,-460.0,0.00019452,2]
[370421346,1752012644375,-460.0,0.00019452,2]
[370421347,1752012644384,-460.0,0.00019452,2]
[370421348,1752012644394,-768.37,0.00019452,2]
[370421349,1752012644403,-524.76607357,0.00019452,2]
[370421351,1752012644412,-460.0,0.00019452,2]
[370421353,1752012644422,-1401.53,0.00019452,2]
[370421355,1752012644431,-460.0,0.00019452,2]
[370421356,1752012644440,-460.0,0.00019452,2]
[370421357,1752012644449,-460.0,0.00019452,2]
[370421358,1752012644458,-460.0,0.00019452,2]
[370421359,1752012644468,-460.0,0.00019452,2]
[370421360,1752012644478,-460.0,0.00019452,2]
[370421361,1752012644487,-1091.28,0.00019452,2]
[370421362,1752012644496,-460.0,0.00019452,2]
[370421363,1752012644509,-460.0,0.00019452,2]
[370421364,1752012644519,-554.91,0.00019452,2]
[370421365,1752012644528,-460.0,0.00019452,2]
[370421366,1752012644540,-460.0,0.00019452,2]
[370421367,1752012644549,-440.0,0.00019452,2]
[370421368,1752012644559,-460.0,0.00019452,2]
[370421369,1752012644568,-936.45,0.00019452,2]
[370421370,1752012644577,-460.0,0.00019452,2]
[370421371,1752012644587,-460.0,0.00019452,2]
[370421372,1752012644596,-1094.87,0.00019452,2]
[370421373,1752012644606,-460.0,0.00019452,2]
[370421374,1752012644616,-460.0,0.00019452,2]
[370421375,1752012644626,-460.0,0.00019452,2]
[370421376,1752012644635,-460.0,0.00019452,2]
[370421377,1752012644644,-460.0,0.00019452,2]
[370421378,1752012644654,-500.17,0.00019452,2]
[370421379,1752012644663,-460.0,0.00019452,2]
[370421380,1752012644673,-460.0,0.00019452,2]
[370421381,1752012644682,-3428.85335801,0.0001947,2]
[370421382,1752012644691,-500.0,0.00019519,2]
[370421383,1752012644700,-500.0,0.00019534,2]
[370421384,1752012644710,-217.95655386,0.00019534,2]
[370421385,1752012644719,-151.0,0.00019534,2]
[370421386,1752012644731,-151.0,0.00019534,2]
[370421387,1752012644740,-298.68294943,0.00019534,2]
[370421388,1752012644750,-199.19616753,0.00019534,2]
[370421389,1752012644759,-151.0,0.00019534,2]
[370421390,1752012644770,-151.0,0.00019534,2]
[370421391,1752012644779,-151.0,0.00019534,2]
[370421392,1752012644789,-151.0,0.00019534,2]
[370421393,1752012644800,-151.0,0.00019534,2]
[370421394,1752012644810,-151.0,0.00019534,2]
[370421395,1752012644819,-151.0,0.00019534,2]
[370421396,1752012644829,-151.0,0.00019534,2]
[370421397,1752012644838,-246.8883299,0.00019534,2]
[370421398,1752012644847,-279.6042664,0.00019534,2]
[370421399,1752012644856,-151.0,0.00019534,2]
[370421400,1752012644866,-500.0,0.00019561,2]
[370421401,1752012644875,-151.0,0.00019561,2]
[370421402,1752012644885,-151.0,0.00019561,2]
[370421403,1752012644895,-151.0,0.00019561,2]
[370421404,1752012644905,-198.0,0.00019561,2]
[370421405,1752012644916,-198.0,0.00019561,2]
[370421406,1752012644926,-151.0,0.00019561,2]
[370421407,1752012644937,-151.0,0.00019561,2]
[370421408,1752012644948,-151.0,0.00019561,2]
[370421409,1752012644958,-151.0,0.00019561,2]
[370421410,1752012644968,-151.0,0.00019561,2]
[370421411,1752012644977,-500.0,0.00019589,2]
[370421412,1752012644986,-198.0,0.00019589,2]
[370421413,1752012644996,-151.0,0.00019589,2]
[370421414,1752012645005,-151.0,0.00019589,2]
[370421415,1752012645017,-151.0,0.00019589,2]
[370421416,1752012645027,-198.0,0.00019589,2]
[370421417,1752012645036,-151.0,0.00019589,2]
[370421418,1752012645045,-151.0,0.00019589,2]
[370421419,1752012645055,-292.0,0.00019589,2]
[370421420,1752012645064,-163.082623,0.00019599,2]
[370421421,1752012645073,-151.0,0.000196,2]
[370421422,1752012645083,-151.0,0.000196,2]
[370421423,1752012645094,-500.0,0.00019616,2]
[370421424,1752012645103,-151.0,0.00019616,2]
[370421425,1752012645112,-259.98735537,0.00019616,2]
[370421426,1752012645123,-255.0,0.00019616,2]
[370421427,1752012645132,-151.0,0.00019616,2]
[370421428,1752012645142,-153.0,0.00019643,2]
[370421429,1752012645151,-306.0,0.00019643,2]
[370421430,1752012645162,-576.1435385,0.00019643,2]
[370421431,1752012645171,-153.0,0.00019643,2]
[370421432,1752012645181,-159.5204994,0.00019643,2]
[370421433,1752012645191,-177.7959578,0.00019643,2]
[370421434,1752012645201,-576.1435385,0.00019643,2]
[370421435,1752012645212,-500.0,0.00019644,2]
[370421436,1752012645225,-151.0,0.00019644,2]
[370421437,1752012645235,-151.0,0.00019644,2]
[370421438,1752012645247,-3428.85335801,0.00019671,2]
[370421439,1752012645257,-500.0,0.00019671,2]
[370421440,1752012645268,-245.0,0.00019671,2]
[370421441,1752012645278,-245.0,0.00019671,2]
[370421442,1752012645287,-500.0,0.00019698,2]
[370421443,1752012645296,-151.0,0.000197,2]
[370421444,1752012645305,-25000.0,0.00019714,2]
[370421445,1752012645314,-1000.0,0.00019721,2]
[370421446,1752012645324,-1000.0,0.00019721,2]
[370421447,1752012645336,-1000.0,0.00019721,2]
[370421448,1752012645346,-500.0,0.00019721,2]
[370421449,1752012645356,-500.0,0.00019726,2]
[370421450,1752012645366,-460.0,0.00019726,2]
[370421451,1752012645375,-546.59,0.00019726,2]
[370421452,1752012645385,-460.0,0.00019726,2]
[370421453,1752012645394,-242.79707853,0.00019726,2]
[370421454,1752012645404,-460.0,0.00019726,2]
[370421455,1752012645414,-460.0,0.00019726,2]
[370421456,1752012645423,-206.72417044,0.00019726,2]
[370421457,1752012645433,-578.93889978,0.00019726,2]
[370421458,1752012645442,-460.0,0.00019726,2]
[370421459,1752012645451,-460.0,0.00019726,2]
[370421460,1752012645460,-460.0,0.00019726,2]
[370421461,1752012645470,-154.92080253,0.00019726,2]
[370421462,1752012645479,-460.0,0.00019726,2]
[370421463,1752012645489,-460.0,0.00019726,2]
[370421464,1752012645499,-460.0,0.00019726,2]
[370421465,1752012645508,-460.0,0.00019726,2]
[370421466,1752012645518,-460.0,0.00019726,2]
[370421467,1752012645528,-460.0,0.00019726,2]
[370421468,1752012645537,-460.0,0.00019726,2]
[370421469,1752012645546,-561.45,0.00019726,2]
[370421470,1752012645556,-460.0,0.00019726,2]
[370421471,1752012645566,-319.98270827,0.00019726,2]
[370421472,1752012645718,-460.0,0.00019726,2]
[370421473,1752012645731,-563.27,0.00019726,2]
[370421474,1752012645741,-460.0,0.00019726,2]
[370421475,1752012645751,-460.0,0.00019726,2]
[370421476,1752012645762,-460.0,0.00019726,2]
[370421477,1752012645772,-319.3,0.00019726,2]
[370421478,1752012645782,-519.13,0.00019726,2]
[370421479,1752012645794,-460.0,0.00019726,2]
[370421480,1752012645805,-460.0,0.00019726,2]
[370421481,1752012645815,-236.52,0.00019726,2]
[370421482,1752012645825,-204.51,0.00019726,2]
[370421483,1752012645835,-515.59,0.00019726,2]
[370421484,1752012645844,-460.0,0.00019726,2]
[370421485,1752012645854,-483.74377633,0.00019726,2]
[370421486,1752012645864,-460.0,0.00019726,2]
[370421487,1752012645875,-460.0,0.00019726,2]
[370421488,1752012645886,-460.0,0.00019726,2]
[370421489,1752012645896,-460.0,0.00019726,2]
[370421490,1752012645906,-460.0,0.00019726,2]
[370421491,1752012645916,-460.0,0.00019726,2]
[370421492,1752012645926,-151.0,0.00019726,2]
[370421493,1752012645935,-460.0,0.00019726,2]
[370421494,1752012645945,-886.1,0.00019726,2]
[370421495,1752012645954,-460.0,0.00019726,2]
[370421496,1752012645964,-460.0,0.00019726,2]
[370421497,1752012645973,-592.74,0.00019726,2]
[370421498,1752012645982,-460.0,0.00019726,2]
[370421499,1752012645991,-460.0,0.00019726,2]
[370421500,1752012646000,-3491.02,0.00019726,2]
[370421501,1752012646009,-460.0,0.00019726,2]
[370421502,1752012646018,-460.0,0.00019726,2]
[370421503,1752012646027,-1031.32,0.00019726,2]
[370421504,1752012646036,-595.56,0.00019726,2]
[370421505,1752012646045,-460.0,0.00019726,2]
[370421506,1752012646055,-460.0,0.00019726,2]
[370421507,1752012646064,-460.0,0.00019726,2]
[370421508,1752012646074,-460.0,0.00019726,2]
[370421509,1752012646083,-460.0,0.00019726,2]
[370421510,1752012646092,-460.0,0.00019726,2]
[370421511,1752012646101,-1029.99,0.00019726,2]
[370421512,1752012646111,-1051.59,0.00019726,2]
[370421513,1752012646120,-460.0,0.00019726,2]
[370421514,1752012646129,-1752.56,0.00019726,2]
[370421515,1752012646139,-460.0,0.00019726,2]
[370421516,1752012646151,-460.0,0.00019726,2]
[370421517,1752012646160,-460.0,0.00019726,2]
[370421518,1752012646170,-1099.48,0.00019726,2]
[370421519,1752012646179,-446.18,0.00019726,2]
[370421520,1752012646188,-460.0,0.00019726,2]
[370421521,1752012646197,-281.68,0.00019726,2]
[370421522,1752012646207,-583.83,0.00019726,2]
[370421523,1752012646216,-460.0,0.00019726,2]
[370421524,1752012646225,-417.87,0.00019726,2]
[370421525,1752012646234,-460.0,0.00019726,2]
[370421526,1752012646243,-2258.7,0.00019726,2]
[370421527,1752012646253,-151.0,0.00019726,2]
[370421528,1752012646262,-151.0,0.00019726,2]
[370421529,1752012646271,-691.29,0.00019726,2]
[370421530,1752012646280,-460.0,0.00019726,2]
[370421531,1752012646290,-460.0,0.00019726,2]
[370421532,1752012646299,-460.0,0.00019726,2]
[370421533,1752012646308,-460.0,0.00019726,2]
[370421534,1752012646317,-460.0,0.00019726,2]
[370421535,1752012646326,-460.0,0.00019726,2]
[370421536,1752012646335,-460.0,0.00019726,2]
[370421537,1752012646344,-513.91,0.00019726,2]
[370421538,1752012646353,-1523.25,0.00019726,2]
[370421539,1752012646362,-460.0,0.00019726,2]
[370421540,1752012646371,-558.79,0.00019726,2]
[370421541,1752012646381,-460.0,0.00019726,2]
[370421542,1752012646391,-460.0,0.00019726,2]
[370421543,1752012646400,-504.1,0.00019726,2]
[370421544,1752012646409,-460.0,0.00019726,2]
[370421545,1752012646418,-704.17,0.00019726,2]
[370421546,1752012646428,-460.0,0.00019726,2]
[370421547,1752012646437,-2041.38,0.00019726,2]
[370421548,1752012646447,-460.0,0.00019726,2]
[370421549,1752012646456,-460.0,0.00019726,2]
[370421550,1752012646465,-160.329056,0.00019726,2]
[370421551,1752012646474,-2818.76,0.00019726,2]
[370421552,1752012646484,-466.64801491,0.00019726,2]
[370421553,1752012646493,-460.0,0.00019726,2]
[370421554,1752012646502,-460.0,0.00019726,2]
[370421555,1752012646512,-1935.51,0.00019726,2]
[370421556,1752012646521,-738.99,0.00019726,2]
[370421557,1752012646530,-1660.85,0.00019726,2]
[370421558,1752012646539,-151.0,0.00019726,2]
[370421559,1752012646549,-513.68,0.00019726,2]
[370421560,1752012646558,-151.0,0.00019726,2]
[370421561,1752012646567,-498.23,0.00019726,2]
[370421562,1752012646577,-460.0,0.00019726,2]
[370421563,1752012646586,-460.0,0.00019726,2]
[370421564,1752012646595,-151.0,0.00019726,2]
[370421565,1752012646604,-460.0,0.00019726,2]
[370421566,1752012646613,-460.0,0.00019726,2]
[370421567,1752012646623,-460.0,0.00019726,2]
[370421568,1752012646632,-151.0,0.00019726,2]
[370421569,1752012646641,-460.0,0.00019726,2]
[370421570,1752012646650,-460.0,0.00019726,2]
[370421571,1752012646659,-768.37,0.00019726,2]
[370421572,1752012646668,-460.0,0.00019726,2]
[370421573,1752012646677,-1401.53,0.00019726,2]
[370421574,1752012646686,-151.0,0.00019726,2]
[370421575,1752012646695,-193.08403378,0.00019726,2]
[370421576,1752012646704,-460.0,0.00019726,2]
[370421577,1752012646713,-151.0,0.00019726,2]
[370421578,1752012646724,-460.0,0.00019726,2]
[370421579,1752012646733,-1091.28,0.00019726,2]
[370421580,1752012646742,-460.0,0.00019726,2]
[370421581,1752012646751,-554.91,0.00019726,2]
[370421582,1752012646761,-460.0,0.00019726,2]
[370421583,1752012646771,-151.0,0.00019726,2]
[370421585,1752012646780,-151.0,0.00019726,2]
[370421586,1752012646790,-460.0,0.00019726,2]
[370421587,1752012646802,-936.45,0.00019726,2]
[370421588,1752012646811,-460.0,0.00019726,2]
[370421589,1752012646820,-460.0,0.00019726,2]
[370421591,1752012646830,-1094.87,0.00019726,2]
[370421592,1752012646839,-460.0,0.00019726,2]
[370421593,1752012646848,-460.0,0.00019726,2]
[370421594,1752012646857,-460.0,0.00019726,2]
[370421595,1752012646867,-460.0,0.00019726,2]
[370421596,1752012646877,-500.17,0.00019726,2]
[370421597,1752012646886,-500.0,0.00019753,2]
[370421598,1752012646896,-151.0,0.00019762,2]
[370421599,1752012646905,-151.0,0.00019762,2]
[370421600,1752012646915,-151.0,0.00019762,2]
[370421602,1752012646924,-297.287078,0.00019768,2]
[370421604,1752012646934,-500.0,0.00019781,2]
[370421606,1752012646943,-1214.09190039,0.00019782,2]
[370421608,1752012646953,-500.0,0.00019793,2]
[370421610,1752012646962,-151.0,0.000198,2]
[370421612,1752012646971,-500.0,0.00019808,2]
[370421614,1752012646980,-500.0,0.00019835,2]
[370421616,1752012646989,-297.287078,0.00019862,2]
[370421618,1752012646999,-500.0,0.00019863,2]
[370421620,1752012647008,-848.40570879,0.00019864,2]
[370421622,1752012647017,-230.51100374,0.00019864,2]
[370421624,1752012647026,-837.89306043,0.00019864,2]
[370421626,1752012647036,-215.2437778,0.00019864,2]
[370421628,1752012647045,-160.0,0.00019864,2]
[370421630,1752012647054,-3428.85335801,0.00019872,2]
[370421632,1752012647063,-500.0,0.0001989,2]
[370421634,1752012647072,-151.0,0.000199,2]
[370421636,1752012647082,-151.0,0.000199,2]
[370421638,1752012647092,-6253.03960292,0.000199,2]
[370421640,1752012647102,-157.0,0.00019906,2]
[370421642,1752012647111,-159.0,0.00019906,2]
[370421644,1752012647121,-161.76160232,0.00019906,2]
[370421646,1752012647131,-159.0,0.00019906,2]
[370421647,1752012647140,-159.0,0.00019906,2]
[370421649,1752012647150,-159.0,0.00019906,2]
[370421650,1752012647160,-159.0,0.00019906,2]
[370421651,1752012647169,-159.0,0.00019906,2]
[370421652,1752012647178,-159.0,0.00019906,2]
[370421653,1752012647187,-281.59804668,0.00019906,2]
[370421654,1752012647197,-318.0,0.00019906,2]
[370421655,1752012647206,-318.0,0.00019906,2]
[370421656,1752012647215,-318.0,0.00019906,2]
[370421657,1752012647225,-318.0,0.00019906,2]
[370421658,1752012647234,-318.0,0.00019906,2]
[370421659,1752012647243,-318.0,0.00019906,2]
[370421660,1752012647252,-318.0,0.00019906,2]
[370421661,1752012647262,-318.0,0.00019906,2]
[370421662,1752012647271,-319.92909851,0.00019906,2]
[370421663,1752012647280,-500.0,0.00019918,2]
[370421664,1752012647289,-500.0,0.00019945,2]
[370421666,1752012647298,-151.0,0.00019953,2]
[370421668,1752012647308,-226.056982,0.00019953,2]
[370421670,1752012647317,-226.056982,0.00019953,2]
[370421672,1752012647326,-443.30882593,0.00019953,2]
[370421674,1752012647335,-500.0,0.00019953,2]
[370421676,1752012647344,-297.287078,0.00019957,2]
[370421678,1752012647353,-238657.20018,0.00019971,2]
[370421680,1752012647362,-500.0,0.00019972,2]
[370421682,1752012647372,-159.0,0.00019976,2]
[370421684,1752012647382,-159.0,0.00019976,2]
[370421686,1752012647391,-157.0,0.00019976,2]
[370421688,1752012647400,-162.177109,0.00019996,2]
[370421690,1752012647409,-162.177109,0.00019996,2]
[370421692,1752012647418,-151.0,0.00019999,2]
[370421694,1752012647428,-500.0,0.00019999,2]
[370421696,1752012647437,-205.77029909,0.00019999,2]
[370421698,1752012647446,-318.0,0.00019999,2]
[370421700,1752012647455,-318.0,0.00019999,2]
[370421701,1752012647465,-318.0,0.00019999,2]
[370421703,1752012647474,-318.0,0.00019999,2]
[370421705,1752012647486,-318.0,0.00019999,2]
[370421707,1752012647495,-318.0,0.00019999,2]
[370421709,1752012647504,-318.0,0.00019999,2]
[370421711,1752012647513,-500.0,0.00019999,2]
[370421713,1752012647523,-154.0,0.00019999,2]
[370421715,1752012647532,-154.0,0.00019999,2]
[370421717,1752012647541,-154.0,0.00019999,2]
[370421719,1752012647550,-318.0,0.00019999,2]
[370421721,1752012647560,-318.0,0.00019999,2]
[370421723,1752012647569,-318.0,0.00019999,2]
[370421725,1752012647578,-318.0,0.00019999,2]
[370421727,1752012647588,-318.0,0.00019999,2]
[370421729,1752012647597,-318.0,0.00019999,2]
[370421731,1752012647606,-318.0,0.00019999,2]
[370421733,1752012647617,-318.0,0.00019999,2]
[370421735,1752012647627,-318.0,0.00019999,2]
[370421737,1752012647636,-318.0,0.00019999,2]
[370421739,1752012647645,-318.0,0.00019999,2]
[370421741,1752012647654,-318.0,0.00019999,2]
[370421743,1752012647664,-318.0,0.00019999,2]
[370421745,1752012647673,-318.0,0.00019999,2]
[370421747,1752012647682,-318.0,0.00019999,2]
[370421749,1752012647691,-500.0,0.0002,2]
[370421751,1752012647701,-7788.75320124,0.0002,5]
[370421753,1752012647710,-460.0,0.0002,2]
[370421755,1752012647721,-460.0,0.0002,2]
[370421757,1752012647733,-460.0,0.0002,2]
[370421759,1752012647742,-460.0,0.0002,2]
[370421761,1752012647752,-460.0,0.0002,2]
[370421763,1752012647763,-460.0,0.0002,2]
[370421765,1752012647772,-151.0,0.0002,2]
[370421767,1752012647781,-460.0,0.0002,2]
[370421769,1752012647791,-460.0,0.0002,2]
[370421771,1752012647802,-460.0,0.0002,2]
[370421773,1752012647811,-542.85,0.0002,2]
[370421775,1752012647821,-460.0,0.0002,2]
[370421777,1752012647831,-151.0,0.0002,2]
[370421779,1752012647840,-199.579521,0.0002,2]
[370421781,1752012647850,-460.0,0.0002,2]
[370421783,1752012647859,-460.0,0.0002,2]
[370421785,1752012647868,-460.0,0.0002,2]
[370421787,1752012647877,-337.60731282,0.0002,2]
[370421789,1752012647886,-561.45,0.0002,2]
[370421791,1752012647895,-460.0,0.0002,2]
[370421792,1752012647904,-460.0,0.0002,2]
[370421793,1752012647914,-563.27,0.0002,2]
[370421794,1752012647923,-460.0,0.0002,2]
[370421795,1752012647933,-460.0,0.0002,2]
[370421796,1752012647942,-519.13,0.0002,2]
[370421797,1752012647952,-460.0,0.0002,2]
[370421798,1752012647961,-460.0,0.0002,2]
[370421799,1752012647971,-460.0,0.0002,2]
[370421800,1752012647981,-460.0,0.0002,2]
[370421801,1752012647991,-460.0,0.0002,2]
[370421802,1752012648000,-460.0,0.0002,2]
[370421803,1752012648009,-369.22034292,0.0002,2]
[370421804,1752012648018,-598.75,0.0002,2]
[370421805,1752012648028,-151.0,0.0002,2]
[370421806,1752012648037,-886.1,0.0002,2]
[370421807,1752012648047,-460.0,0.0002,2]
[370421808,1752012648056,-460.0,0.0002,2]
[370421809,1752012648065,-592.74,0.0002,2]
[370421810,1752012648075,-471.13,0.0002,2]
[370421811,1752012648084,-460.0,0.0002,2]
[370421812,1752012648094,-3491.02,0.0002,2]
[370421813,1752012648103,-460.0,0.0002,2]
[370421814,1752012648113,-151.0,0.0002,2]
[370421815,1752012648123,-460.0,0.0002,2]
[370421816,1752012648132,-1031.32,0.0002,2]
[370421817,1752012648141,-595.56,0.0002,2]
[370421818,1752012648151,-460.0,0.0002,2]
[370421819,1752012648160,-151.0,0.0002,2]
[370421820,1752012648169,-460.0,0.0002,2]
[370421821,1752012648179,-460.0,0.0002,2]
[370421822,1752012648188,-460.0,0.0002,2]
[370421823,1752012648197,-1029.99,0.0002,2]
[370421824,1752012648206,-1051.59,0.0002,2]
[370421825,1752012648216,-460.0,0.0002,2]
[370421826,1752012648225,-1752.56,0.0002,2]
[370421827,1752012648235,-460.0,0.0002,2]
[370421828,1752012648244,-460.0,0.0002,2]
[370421829,1752012648254,-460.0,0.0002,2]
[370421830,1752012648263,-1099.48,0.0002,2]
[370421831,1752012648273,-460.0,0.0002,2]
[370421832,1752012648282,-460.0,0.0002,2]
[370421833,1752012648292,-2258.7,0.0002,2]
[370421834,1752012648301,-691.29,0.0002,2]
[370421835,1752012648311,-460.0,0.0002,2]
[370421836,1752012648320,-460.0,0.0002,2]
[370421837,1752012648330,-460.0,0.0002,2]
[370421838,1752012648339,-460.0,0.0002,2]
[370421839,1752012648348,-483.93,0.0002,2]
[370421840,1752012648358,-460.0,0.0002,2]
[370421841,1752012648367,-513.91,0.0002,2]
[370421842,1752012648378,-1523.25,0.0002,2]
[370421843,1752012648387,-460.0,0.0002,2]
[370421844,1752012648396,-348.41894127,0.0002,2]
[370421845,1752012648673,-111.58105873,0.0002,2]
[370421846,1752012648683,-460.0,0.0002,2]
[370421847,1752012648692,-504.1,0.0002,2]
[370421848,1752012648702,-539.7,0.0002,2]
[370421849,1752012648712,-704.17,0.0002,2]
[370421850,1752012648726,-460.0,0.0002,2]
[370421851,1752012648737,-2041.38,0.0002,2]
[370421852,1752012648747,-170.72,0.0002,2]
[370421853,1752012648757,-460.0,0.0002,2]
[370421854,1752012648768,-2818.76,0.0002,2]
[370421855,1752012648777,-460.0,0.0002,2]
[370421856,1752012648787,-419.87,0.0002,2]
[370421857,1752012648796,-1935.51,0.0002,2]
[370421858,1752012648808,-738.99,0.0002,2]
[370421859,1752012648818,-1660.85,0.0002,2]
[370421860,1752012648827,-513.68,0.0002,2]
[370421861,1752012648837,-151.0,0.0002,2]
[370421862,1752012648847,-498.23,0.0002,2]
[370421863,1752012648857,-460.0,0.0002,2]
[370421864,1752012648866,-460.0,0.0002,2]
[370421865,1752012648876,-460.0,0.0002,2]
[370421866,1752012648886,-460.0,0.0002,2]
[370421867,1752012648896,-460.0,0.0002,2]
[370421868,1752012648906,-414.69,0.0002,2]
[370421869,1752012648916,-460.0,0.0002,2]
[370421870,1752012648925,-768.37,0.0002,2]
[370421871,1752012648935,-334.18,0.0002,2]
[370421872,1752012648944,-151.0,0.0002,2]
[370421873,1752012648954,-1401.53,0.0002,2]
[370421874,1752012648963,-460.0,0.0002,2]
[370421875,1752012648972,-151.0,0.0002,2]
[370421876,1752012648981,-460.0,0.0002,2]
[370421877,1752012648991,-1091.28,0.0002,2]
[370421878,1752012649000,-460.0,0.0002,2]
[370421879,1752012649009,-554.91,0.0002,2]
[370421880,1752012649019,-608.02686397,0.0002,2]
[370421881,1752012649028,-151.0,0.0002,2]
[370421882,1752012649038,-151.0,0.0002,2]
[370421883,1752012649047,-460.0,0.0002,2]
[370421884,1752012649056,-936.45,0.0002,2]
[370421885,1752012649065,-460.0,0.0002,2]
[370421886,1752012649074,-460.0,0.0002,2]
[370421887,1752012649084,-460.0,0.0002,2]
[370421888,1752012649093,-1094.87,0.0002,2]
[370421889,1752012649103,-460.0,0.0002,2]
[370421890,1752012649112,-460.0,0.0002,2]
[370421891,1752012649122,-460.0,0.0002,2]
[370421892,1752012649131,-500.17,0.0002,2]
[370421893,1752012649140,-151.0,0.0002001,2]
[370421894,1752012649150,-151.0,0.0002001,2]
[370421895,1752012649159,-151.0,0.0002001,2]
[370421896,1752012649168,-500.0,0.00020027,2]
[370421897,1752012649178,-297.287078,0.00020051,2]
[370421898,1752012649187,-216.0,0.00020055,2]
[370421899,1752012649196,-151.0,0.000201,3]
[370421900,1752012649205,-151.0,0.000201,4]
[370421901,1752012649215,-6253.0396028,0.00020107,2]
[370421902,1752012649224,-151.0,0.00020107,2]
[370421903,1752012649233,-151.0,0.00020107,2]
[370421904,1752012649242,-151.0,0.00020107,2]
[370421905,1752012649252,-297.287078,0.00020146,2]
[370421906,1752012649261,-668.177291,0.00020187,2]
[370421907,1752012649270,-151.0,0.000202,4]
[370421908,1752012649280,-297.287078,0.00020241,2]
[370421909,1752012649289,-302.37457667,0.00020268,2]
[370421910,1752012649299,-1500.0,0.00020268,2]
[370421911,1752012649308,-460.0,0.00020273,2]
[370421912,1752012649317,-460.0,0.00020273,2]